[Event "Early-Titled-Tuesday-Blitz-January-23-2024"]
[Site "Chess.com"]
[Date "2024.01.23"]
[Round "10"]
[White "KanalSzachowy"]
[Black "Aash20"]
[Result "1/2-1/2"]
[WhiteElo "2355"]
[BlackElo "2489"]
[TimeControl "180+1"]
[EndTime "9:56:30 PST"]
[Termination "Game drawn - insufficient material"]

1. e4 {[%clk 0:03:00.9]} 1... c5 {[%clk 0:02:59.3]} 2. Nc3 {[%clk 0:03:00.4]}
2... g6 {[%clk 0:02:58]} 3. d4 {[%clk 0:03:00.1]} 3... cxd4 {[%clk 0:02:56.4]}
4. Qxd4 {[%clk 0:03:01]} 4... Nf6 {[%clk 0:02:56.1]} 5. Be3 {[%clk 0:03:01.1]}
5... Nc6 {[%clk 0:02:56.4]} 6. Qd2 {[%clk 0:03:01.5]} 6... Bg7 {[%clk
0:02:56.2]} 7. f3 {[%clk 0:03:01.3]} 7... O-O {[%clk 0:02:55.7]} 8. O-O-O {[%clk
0:03:01.6]} 8... d6 {[%clk 0:02:55.3]} 9. Nge2 {[%clk 0:03:02]} 9... Be6 {[%clk
0:02:54.7]} 10. Nf4 {[%clk 0:03:01.4]} 10... Bd7 {[%clk 0:02:54.2]} 11. h4
{[%clk 0:02:58.9]} 11... Qa5 {[%clk 0:02:53]} 12. Kb1 {[%clk 0:02:54.4]} 12...
Rfc8 {[%clk 0:02:52.4]} 13. h5 {[%clk 0:02:52.8]} 13... Ne5 {[%clk 0:02:49.4]}
14. hxg6 {[%clk 0:02:44.9]} 14... hxg6 {[%clk 0:02:47.2]} 15. Nfd5 {[%clk
0:02:07.8]} 15... Nxd5 {[%clk 0:02:44.8]} 16. Nxd5 {[%clk 0:02:07.8]} 16... Qxd2
{[%clk 0:02:44.3]} 17. Rxd2 {[%clk 0:01:54.7]} 17... Kf8 {[%clk 0:02:28.1]} 18.
Rh7 {[%clk 0:01:51.6]} 18... Kg8 {[%clk 0:02:12.2]} 19. Rh1 {[%clk 0:01:44.1]}
19... Bf8 {[%clk 0:02:11.3]} 20. Be2 {[%clk 0:01:30.7]} 20... Be6 {[%clk
0:02:08.4]} 21. f4 {[%clk 0:01:29.9]} 21... Bxd5 {[%clk 0:02:03.2]} 22. Rxd5
{[%clk 0:01:24.2]} 22... Nc4 {[%clk 0:02:00.2]} 23. Rh3 {[%clk 0:00:34.3]} 23...
Bg7 {[%clk 0:01:54]} 24. c3 {[%clk 0:00:23.6]} 24... a6 {[%clk 0:01:47.4]} 25.
f5 {[%clk 0:00:18.1]} 25... b5 {[%clk 0:01:39.5]} 26. fxg6 {[%clk 0:00:14.1]}
26... fxg6 {[%clk 0:01:40.4]} 27. Rg5 {[%clk 0:00:13.1]} 27... Nxe3 {[%clk
0:01:35.7]} 28. Rxe3 {[%clk 0:00:12.1]} 28... Kf7 {[%clk 0:01:35]} 29. Bg4
{[%clk 0:00:10.7]} 29... Rh8 {[%clk 0:01:33.4]} 30. Rf3+ {[%clk 0:00:10.8]}
30... Bf6 {[%clk 0:01:33.2]} 31. e5 {[%clk 0:00:10]} 31... dxe5 {[%clk
0:01:32.7]} 32. Rxe5 {[%clk 0:00:09.6]} 32... Rh2 {[%clk 0:01:29.4]} 33. Be6+
{[%clk 0:00:09]} 33... Kg7 {[%clk 0:01:28.9]} 34. Rd5 {[%clk 0:00:08.3]} 34...
Rxg2 {[%clk 0:01:26.8]} 35. Rd7 {[%clk 0:00:06.9]} 35... b4 {[%clk 0:01:25.3]}
36. Bd5 {[%clk 0:00:07]} 36... Rb8 {[%clk 0:01:23.4]} 37. Rxf6 {[%clk
0:00:07.3]} 37... Kxf6 {[%clk 0:01:22.4]} 38. Bxg2 {[%clk 0:00:07.4]} 38... bxc3
{[%clk 0:01:22.9]} 39. Rb7 {[%clk 0:00:04.8]} 39... Rxb7 {[%clk 0:01:21.9]} 40.
Bxb7 {[%clk 0:00:05.7]} 40... cxb2 {[%clk 0:01:22.2]} 41. Kxb2 {[%clk
0:00:05.7]} 41... a5 {[%clk 0:01:21.4]} 42. Kb3 {[%clk 0:00:04.6]} 42... Ke5
{[%clk 0:01:21.9]} 43. Ka4 {[%clk 0:00:04.9]} 43... Kd4 {[%clk 0:01:22.4]} 44.
Kxa5 {[%clk 0:00:05.4]} 44... e5 {[%clk 0:01:23.3]} 45. Kb6 {[%clk 0:00:04.3]}
45... e4 {[%clk 0:01:23.2]} 46. a4 {[%clk 0:00:03.1]} 46... g5 {[%clk
0:01:23.7]} 47. a5 {[%clk 0:00:03.1]} 47... g4 {[%clk 0:01:24]} 48. a6 {[%clk
0:00:03.1]} 48... g3 {[%clk 0:01:24.2]} 49. a7 {[%clk 0:00:02.3]} 49... g2
{[%clk 0:01:24.6]} 50. a8=Q {[%clk 0:00:02.5]} 50... g1=Q {[%clk 0:01:24.6]} 51.
Qd8+ {[%clk 0:00:01.5]} 51... Kc4+ {[%clk 0:01:21.9]} 52. Kc7 {[%clk 0:00:01.1]}
52... Qc5+ {[%clk 0:01:20.2]} 53. Kd7 {[%clk 0:00:01.1]} 53... Qd4+ {[%clk
0:01:18.3]} 54. Ke8 {[%clk 0:00:01.1]} 54... Qe5+ {[%clk 0:01:17.7]} 55. Qe7
{[%clk 0:00:01.2]} 55... Qxe7+ {[%clk 0:01:17.6]} 56. Kxe7 {[%clk 0:00:02.1]}
56... e3 {[%clk 0:01:18.5]} 57. Bf3 {[%clk 0:00:02.3]} 57... Kd3 {[%clk
0:01:18.8]} 58. Bh5 {[%clk 0:00:03]} 58... Kd2 {[%clk 0:01:19.7]} 59. Bg4 {[%clk
0:00:03.2]} 59... Ke1 {[%clk 0:01:20.6]} 60. Bh5 {[%clk 0:00:03.6]} 60... Kf2
{[%clk 0:01:21.5]} 61. Bg4 {[%clk 0:00:04.1]} 61... e2 {[%clk 0:01:22.4]} 62.
Bxe2 {[%clk 0:00:04.4]} 1/2-1/2

[Event "Early-Titled-Tuesday-Blitz-January-23-2024"]
[Site "Chess.com"]
[Date "2024.01.23"]
[Round "10"]
[White "IsaqueGoncalvesSanto"]
[Black "Alenzer"]
[Result "1-0"]
[WhiteElo "1821"]
[BlackElo "2136"]
[TimeControl "180+1"]
[EndTime "9:56:31 PST"]
[Termination "IsaqueGoncalvesSanto won on time"]

1. d4 {[%clk 0:02:54.2]} 1... d5 {[%clk 0:02:59]} 2. c4 {[%clk 0:02:53.8]} 2...
dxc4 {[%clk 0:02:58.7]} 3. Nc3 {[%clk 0:02:53.3]} 3... a6 {[%clk 0:02:57.9]} 4.
a4 {[%clk 0:02:49]} 4... Nf6 {[%clk 0:02:56.7]} 5. e3 {[%clk 0:02:47.5]} 5... e6
{[%clk 0:02:56.4]} 6. Bxc4 {[%clk 0:02:46.9]} 6... c5 {[%clk 0:02:54.6]} 7. Nf3
{[%clk 0:02:39.2]} 7... Nc6 {[%clk 0:02:38.9]} 8. O-O {[%clk 0:02:37.2]} 8...
cxd4 {[%clk 0:02:34.1]} 9. exd4 {[%clk 0:02:33.2]} 9... Bd6 {[%clk 0:02:27.2]}
10. d5 {[%clk 0:02:28.8]} 10... exd5 {[%clk 0:02:25.6]} 11. Re1+ {[%clk
0:02:27]} 11... Be6 {[%clk 0:02:18.5]} 12. Bxd5 {[%clk 0:02:15.3]} 12... Nxd5
{[%clk 0:02:13.1]} 13. Nxd5 {[%clk 0:01:36]} 13... O-O {[%clk 0:02:12.1]} 14.
Nf4 {[%clk 0:01:35.8]} 14... Bg4 {[%clk 0:02:04.8]} 15. h3 {[%clk 0:01:25.2]}
15... Bf5 {[%clk 0:01:42.5]} 16. Qd5 {[%clk 0:01:10.1]} 16... Bxf4 {[%clk
0:01:27.2]} 17. Qxd8 {[%clk 0:01:07.5]} 17... Raxd8 {[%clk 0:01:23.2]} 18. Bxf4
{[%clk 0:01:06.1]} 18... Rfe8 {[%clk 0:01:20.2]} 19. Rxe8+ {[%clk 0:00:51.4]}
19... Rxe8 {[%clk 0:01:20.2]} 20. Be3 {[%clk 0:00:48.8]} 20... h6 {[%clk
0:01:14.9]} 21. Rd1 {[%clk 0:00:47.2]} 21... Bc2 {[%clk 0:01:04.3]} 22. Rd7
{[%clk 0:00:39.9]} 22... Re7 {[%clk 0:00:58.7]} 23. Rxe7 {[%clk 0:00:33]} 23...
Nxe7 {[%clk 0:00:57]} 24. a5 {[%clk 0:00:32.7]} 24... Nc6 {[%clk 0:00:52.5]} 25.
Bb6 {[%clk 0:00:31.2]} 25... Kf8 {[%clk 0:00:46.6]} 26. Ne1 {[%clk 0:00:28]}
26... Bf5 {[%clk 0:00:41.6]} 27. g4 {[%clk 0:00:27.3]} 27... Be6 {[%clk
0:00:41.5]} 28. Nd3 {[%clk 0:00:24.1]} 28... Ke7 {[%clk 0:00:41.2]} 29. Nc5
{[%clk 0:00:23.5]} 29... Bc8 {[%clk 0:00:40.6]} 30. f4 {[%clk 0:00:22]} 30...
Kd6 {[%clk 0:00:39.5]} 31. Kf2 {[%clk 0:00:20.2]} 31... Nb4 {[%clk 0:00:36]} 32.
Ne4+ {[%clk 0:00:19.5]} 32... Kc6 {[%clk 0:00:33.9]} 33. Bd4 {[%clk 0:00:17]}
33... f6 {[%clk 0:00:25.1]} 34. Ng3 {[%clk 0:00:16.1]} 34... Kd5 {[%clk
0:00:23.1]} 35. Bc3 {[%clk 0:00:16]} 35... Nd3+ {[%clk 0:00:21.5]} 36. Ke3
{[%clk 0:00:16.2]} 36... Nc5 {[%clk 0:00:20.4]} 37. Nh5 {[%clk 0:00:15.9]} 37...
Ne6 {[%clk 0:00:14.6]} 38. f5 {[%clk 0:00:15.2]} 38... Ng5 {[%clk 0:00:14.8]}
39. Nxg7 {[%clk 0:00:15.2]} 39... Ne4 {[%clk 0:00:08.8]} 40. Ne8 {[%clk
0:00:14.7]} 1-0

[Event "Early-Titled-Tuesday-Blitz-January-23-2024"]
[Site "Chess.com"]
[Date "2024.01.23"]
[Round "10"]
[White "Witik"]
[Black "arnash_bauyrzhan"]
[Result "1-0"]
[WhiteElo "2630"]
[BlackElo "2211"]
[TimeControl "180+1"]
[EndTime "9:56:33 PST"]
[Termination "Witik won by checkmate"]

1. d4 {[%clk 0:02:59.7]} 1... d5 {[%clk 0:02:58.1]} 2. Nf3 {[%clk 0:02:59.8]}
2... Nf6 {[%clk 0:02:56.8]} 3. c4 {[%clk 0:03:00]} 3... e6 {[%clk 0:02:56.6]} 4.
g3 {[%clk 0:02:59.2]} 4... Be7 {[%clk 0:02:56]} 5. Bg2 {[%clk 0:02:59.4]} 5...
O-O {[%clk 0:02:56]} 6. O-O {[%clk 0:03:00]} 6... dxc4 {[%clk 0:02:55.7]} 7. Qc2
{[%clk 0:03:00]} 7... a6 {[%clk 0:02:55]} 8. a4 {[%clk 0:02:59.1]} 8... Bd7
{[%clk 0:02:54.5]} 9. Qxc4 {[%clk 0:02:57.7]} 9... Bc6 {[%clk 0:02:54.7]} 10.
Bf4 {[%clk 0:02:54.4]} 10... Bd6 {[%clk 0:02:44.1]} 11. Nc3 {[%clk 0:02:54.2]}
11... Bxf4 {[%clk 0:02:38.2]} 12. gxf4 {[%clk 0:02:55.1]} 12... Nbd7 {[%clk
0:02:38.2]} 13. e3 {[%clk 0:02:50.1]} 13... Bd5 {[%clk 0:02:21.5]} 14. Qe2
{[%clk 0:02:47.9]} 14... Bxf3 {[%clk 0:02:20.2]} 15. Bxf3 {[%clk 0:02:47.3]}
15... c6 {[%clk 0:02:20.1]} 16. Kh1 {[%clk 0:02:47.8]} 16... Nb6 {[%clk
0:02:14.6]} 17. Rg1 {[%clk 0:02:46.2]} 17... Kh8 {[%clk 0:02:13.8]} 18. Rg3
{[%clk 0:02:42.3]} 18... Nbd5 {[%clk 0:02:09.4]} 19. Rag1 {[%clk 0:02:41.8]}
19... g6 {[%clk 0:02:05.9]} 20. Rh3 {[%clk 0:02:40.5]} 20... Qa5 {[%clk
0:01:57.8]} 21. Ne4 {[%clk 0:02:19.4]} 21... Nxe4 {[%clk 0:01:31.7]} 22. Bxe4
{[%clk 0:02:19.5]} 22... Nf6 {[%clk 0:01:27.6]} 23. Bc2 {[%clk 0:01:48.6]} 23...
c5 {[%clk 0:01:17.3]} 24. e4 {[%clk 0:01:21.5]} 24... cxd4 {[%clk 0:01:13.2]}
25. e5 {[%clk 0:01:21.3]} 25... Qd5+ {[%clk 0:01:07.6]} 26. Rg2 {[%clk
0:01:18.4]} 26... Nh5 {[%clk 0:00:59.2]} 27. Rxh5 {[%clk 0:01:18.1]} 27... gxh5
{[%clk 0:00:57.6]} 28. Be4 {[%clk 0:00:54.2]} 28... d3 {[%clk 0:00:49.1]} 29.
Qf3 {[%clk 0:00:44.4]} 29... Qxe4 {[%clk 0:00:19.6]} 30. Qxe4 {[%clk 0:00:44.2]}
30... d2 {[%clk 0:00:20]} 31. Rg1 {[%clk 0:00:41.4]} 31... Rac8 {[%clk
0:00:19.8]} 32. Qe3 {[%clk 0:00:18.1]} 32... Rfd8 {[%clk 0:00:19.5]} 33. Rd1
{[%clk 0:00:18.1]} 33... Rc2 {[%clk 0:00:17.2]} 34. f5 {[%clk 0:00:18.6]} 34...
exf5 {[%clk 0:00:08.7]} 35. Qg5 {[%clk 0:00:19]} 35... Rg8 {[%clk 0:00:05.7]}
36. Qf6+ {[%clk 0:00:17.7]} 36... Rg7 {[%clk 0:00:06]} 37. Rg1 {[%clk
0:00:15.2]} 37... d1=Q {[%clk 0:00:02.5]} 38. Qxg7# {[%clk 0:00:15.2]} 1-0

[Event "Early-Titled-Tuesday-Blitz-January-23-2024"]
[Site "Chess.com"]
[Date "2024.01.23"]
[Round "10"]
[White "mary-sanna"]
[Black "ViktoriyaTarasova"]
[Result "0-1"]
[WhiteElo "2199"]
[BlackElo "2299"]
[TimeControl "180+1"]
[EndTime "9:56:33 PST"]
[Termination "ViktoriyaTarasova won on time"]

1. d4 {[%clk 0:03:00.5]} 1... Nf6 {[%clk 0:03:00.1]} 2. c4 {[%clk 0:03:00.4]}
2... e6 {[%clk 0:03:00.5]} 3. Nf3 {[%clk 0:02:59.6]} 3... b6 {[%clk 0:03:00.6]}
4. g3 {[%clk 0:02:59.8]} 4... Na6 {[%clk 0:02:59.5]} 5. Bg2 {[%clk 0:02:59.6]}
5... Bb7 {[%clk 0:02:59.4]} 6. O-O {[%clk 0:02:59.6]} 6... Be7 {[%clk
0:02:57.7]} 7. Nc3 {[%clk 0:02:59.1]} 7... d5 {[%clk 0:02:56]} 8. b3 {[%clk
0:02:54.2]} 8... O-O {[%clk 0:02:55.4]} 9. Bb2 {[%clk 0:02:52.4]} 9... c5 {[%clk
0:02:55.9]} 10. Ne5 {[%clk 0:02:49.7]} 10... cxd4 {[%clk 0:02:44.7]} 11. Qxd4
{[%clk 0:02:47.4]} 11... Bc5 {[%clk 0:02:45.2]} 12. Qd2 {[%clk 0:02:46.7]} 12...
Qe7 {[%clk 0:02:38.2]} 13. cxd5 {[%clk 0:02:43.6]} 13... Rfd8 {[%clk 0:02:36.6]}
14. e4 {[%clk 0:02:39.8]} 14... Bb4 {[%clk 0:02:10.8]} 15. Rfd1 {[%clk
0:02:11.2]} 15... exd5 {[%clk 0:02:00.1]} 16. Nd3 {[%clk 0:01:29.6]} 16... dxe4
{[%clk 0:01:54.2]} 17. Re1 {[%clk 0:01:25.7]} 17... Qd7 {[%clk 0:01:32.8]} 18.
a3 {[%clk 0:00:25.5]} 18... Bxc3 {[%clk 0:01:16.2]} 19. Qxc3 {[%clk 0:00:26.4]}
19... Qxd3 {[%clk 0:01:15.6]} 20. Qe5 {[%clk 0:00:16.8]} 20... Qd6 {[%clk
0:01:01.4]} 21. Qg5 {[%clk 0:00:15.5]} 21... h6 {[%clk 0:01:00.1]} 22. Qh4
{[%clk 0:00:13.6]} 22... Nc5 {[%clk 0:00:50.6]} 23. b4 {[%clk 0:00:13.1]} 23...
Nd3 {[%clk 0:00:49.6]} 24. Red1 {[%clk 0:00:13.1]} 24... Qe6 {[%clk 0:00:46]}
25. Bc3 {[%clk 0:00:11.3]} 25... Rac8 {[%clk 0:00:45]} 26. Bh3 {[%clk
0:00:10.9]} 26... Qc6 {[%clk 0:00:31.9]} 27. Bxc8 {[%clk 0:00:10.6]} 27... e3
{[%clk 0:00:19.2]} 28. Bxb7 {[%clk 0:00:09.7]} 28... Qxb7 {[%clk 0:00:19.2]} 29.
fxe3 {[%clk 0:00:04.6]} 29... Qf3 {[%clk 0:00:19.1]} 30. Bxf6 {[%clk 0:00:01.7]}
30... Qxe3+ {[%clk 0:00:17.9]} 31. Kg2 {[%clk 0:00:01.2]} 31... Qe2+ {[%clk
0:00:17.2]} 32. Kh3 {[%clk 0:00:01.6]} 32... Nf2+ {[%clk 0:00:14]} 33. Kg2
{[%clk 0:00:01.1]} 33... Rxd1 {[%clk 0:00:13.8]} 34. Rxd1 {[%clk 0:00:01.1]}
34... Nxd1+ {[%clk 0:00:13.8]} 35. Kh3 {[%clk 0:00:01.8]} 35... Qe6+ {[%clk
0:00:13.5]} 36. g4 {[%clk 0:00:01.4]} 36... Qxf6 {[%clk 0:00:13.5]} 37. Qe1
{[%clk 0:00:02.1]} 37... Qc3+ {[%clk 0:00:12.7]} 38. Kh4 {[%clk 0:00:02.3]}
38... Qxe1+ {[%clk 0:00:11.2]} 0-1

[Event "Early-Titled-Tuesday-Blitz-January-23-2024"]
[Site "Chess.com"]
[Date "2024.01.23"]
[Round "10"]
[White "sergoy"]
[Black "SpeedofLight0"]
[Result "0-1"]
[WhiteElo "3022"]
[BlackElo "2936"]
[TimeControl "180+1"]
[EndTime "9:56:34 PST"]
[Termination "SpeedofLight0 won by resignation"]

1. d4 {[%clk 0:03:00.9]} 1... Nf6 {[%clk 0:02:58.7]} 2. c4 {[%clk 0:02:59.6]}
2... g6 {[%clk 0:02:57.8]} 3. Nc3 {[%clk 0:02:56.3]} 3... Bg7 {[%clk 0:02:57.9]}
4. e4 {[%clk 0:02:56.5]} 4... d6 {[%clk 0:02:58.4]} 5. Nf3 {[%clk 0:02:57.1]}
5... O-O {[%clk 0:02:57.3]} 6. Be2 {[%clk 0:02:57.4]} 6... e5 {[%clk 0:02:57.1]}
7. O-O {[%clk 0:02:57.6]} 7... Nc6 {[%clk 0:02:56.7]} 8. d5 {[%clk 0:02:57.9]}
8... Ne7 {[%clk 0:02:57.1]} 9. b4 {[%clk 0:02:58.6]} 9... Ne8 {[%clk 0:02:55.6]}
10. a4 {[%clk 0:02:55.2]} 10... f5 {[%clk 0:02:55.6]} 11. Ng5 {[%clk 0:02:53.8]}
11... h6 {[%clk 0:02:50.6]} 12. Ne6 {[%clk 0:02:53.9]} 12... Bxe6 {[%clk
0:02:50.9]} 13. dxe6 {[%clk 0:02:54.8]} 13... c6 {[%clk 0:02:51.5]} 14. exf5
{[%clk 0:02:30.5]} 14... Nxf5 {[%clk 0:02:29]} 15. b5 {[%clk 0:02:30.4]} 15...
Nd4 {[%clk 0:02:26.2]} 16. Bd3 {[%clk 0:02:26.6]} 16... Qf6 {[%clk 0:02:24.4]}
17. bxc6 {[%clk 0:02:20.5]} 17... bxc6 {[%clk 0:02:25.3]} 18. Qg4 {[%clk
0:02:20.8]} 18... g5 {[%clk 0:02:17.2]} 19. Qe4 {[%clk 0:02:10.4]} 19... Qxe6
{[%clk 0:02:16.4]} 20. Qh7+ {[%clk 0:02:10.3]} 20... Kf7 {[%clk 0:02:16.5]} 21.
Be3 {[%clk 0:02:07.1]} 21... Rh8 {[%clk 0:01:08.4]} 22. Qe4 {[%clk 0:02:06.9]}
22... d5 {[%clk 0:01:09]} 23. cxd5 {[%clk 0:02:01.6]} 23... cxd5 {[%clk
0:01:09.9]} 24. Qxd5 {[%clk 0:02:02]} 24... Qxd5 {[%clk 0:01:09.4]} 25. Nxd5
{[%clk 0:02:02.9]} 25... Nd6 {[%clk 0:01:09.1]} 26. Rab1 {[%clk 0:01:54.6]}
26... Rab8 {[%clk 0:01:08.3]} 27. Rfc1 {[%clk 0:01:49.6]} 27... Rxb1 {[%clk
0:01:05.5]} 28. Rxb1 {[%clk 0:01:49.8]} 28... Rc8 {[%clk 0:01:05.2]} 29. Bd2
{[%clk 0:01:25.6]} 29... e4 {[%clk 0:01:02.7]} 30. Bf1 {[%clk 0:01:25.3]} 30...
Be5 {[%clk 0:00:55.7]} 31. Ne3 {[%clk 0:01:23.2]} 31... Ke6 {[%clk 0:00:54.9]}
32. h3 {[%clk 0:01:14.3]} 32... h5 {[%clk 0:00:52.6]} 33. a5 {[%clk 0:01:14]}
33... Bf4 {[%clk 0:00:48.1]} 34. a6 {[%clk 0:01:13.1]} 34... g4 {[%clk
0:00:48.3]} 35. hxg4 {[%clk 0:00:32.3]} 35... hxg4 {[%clk 0:00:49.2]} 36. Rb4
{[%clk 0:00:32.9]} 36... Bxe3 {[%clk 0:00:31.8]} 37. fxe3 {[%clk 0:00:27.4]}
37... N4f5 {[%clk 0:00:28.3]} 38. Rb2 {[%clk 0:00:26.6]} 38... g3 {[%clk
0:00:27.1]} 39. Be2 {[%clk 0:00:26.8]} 39... Kf6 {[%clk 0:00:26]} 40. Bg4 {[%clk
0:00:23.3]} 40... Kg5 {[%clk 0:00:25]} 41. Be2 {[%clk 0:00:21.1]} 41... Rc6
{[%clk 0:00:21.4]} 42. Be1 {[%clk 0:00:18.3]} 42... Rc1 {[%clk 0:00:19.3]} 43.
Rb1 {[%clk 0:00:03.2]} 43... Rxb1 {[%clk 0:00:19.4]} 0-1

[Event "Early-Titled-Tuesday-Blitz-January-23-2024"]
[Site "Chess.com"]
[Date "2024.01.23"]
[Round "10"]
[White "rhungaski"]
[Black "eagleclaw07"]
[Result "0-1"]
[WhiteElo "2519"]
[BlackElo "2639"]
[TimeControl "180+1"]
[EndTime "9:56:35 PST"]
[Termination "eagleclaw07 won on time"]

1. e4 {[%clk 0:03:00.9]} 1... e5 {[%clk 0:02:56.2]} 2. Nf3 {[%clk 0:03:00.2]}
2... Nc6 {[%clk 0:02:56.6]} 3. d4 {[%clk 0:02:59.7]} 3... exd4 {[%clk
0:02:55.7]} 4. Nxd4 {[%clk 0:03:00.6]} 4... Bc5 {[%clk 0:02:55.6]} 5. Be3 {[%clk
0:02:59.5]} 5... Qf6 {[%clk 0:02:54.1]} 6. Nb5 {[%clk 0:02:59.2]} 6... Bxe3
{[%clk 0:02:52.2]} 7. fxe3 {[%clk 0:03:00.1]} 7... Qd8 {[%clk 0:02:46.7]} 8. Qg4
{[%clk 0:02:48.2]} 8... g6 {[%clk 0:02:44]} 9. Qf4 {[%clk 0:02:39.4]} 9... d6
{[%clk 0:02:44.1]} 10. N1c3 {[%clk 0:02:36.3]} 10... a6 {[%clk 0:02:43.3]} 11.
Nd4 {[%clk 0:02:32.8]} 11... Ne5 {[%clk 0:02:40]} 12. Be2 {[%clk 0:02:27.9]}
12... Nf6 {[%clk 0:02:29.6]} 13. Rf1 {[%clk 0:02:18.3]} 13... Nfd7 {[%clk
0:02:28.2]} 14. Qh6 {[%clk 0:01:56.9]} 14... c6 {[%clk 0:02:22.3]} 15. Qg7
{[%clk 0:01:23.8]} 15... Rf8 {[%clk 0:02:21.8]} 16. Qh6 {[%clk 0:00:23.3]} 16...
Qe7 {[%clk 0:02:04.5]} 17. O-O-O {[%clk 0:00:21.4]} 17... b5 {[%clk 0:01:58.8]}
18. Qf4 {[%clk 0:00:18]} 18... Bb7 {[%clk 0:01:58.9]} 19. Bg4 {[%clk 0:00:16.9]}
19... Nxg4 {[%clk 0:01:55.5]} 20. Qxg4 {[%clk 0:00:17.8]} 20... O-O-O {[%clk
0:01:54]} 21. a3 {[%clk 0:00:16.6]} 21... Kb8 {[%clk 0:01:54.1]} 22. Nf3 {[%clk
0:00:16.7]} 22... Ne5 {[%clk 0:01:53.6]} 23. Qf4 {[%clk 0:00:16.7]} 23... f6
{[%clk 0:01:52.8]} 24. h3 {[%clk 0:00:16.5]} 24... Ka8 {[%clk 0:01:50]} 25. Kb1
{[%clk 0:00:15.9]} 25... Nc4 {[%clk 0:01:49.3]} 26. Nd2 {[%clk 0:00:14.4]} 26...
Ne5 {[%clk 0:01:47.7]} 27. Nb3 {[%clk 0:00:14.5]} 27... Qc7 {[%clk 0:01:46.8]}
28. Rd2 {[%clk 0:00:13.8]} 28... Nc4 {[%clk 0:01:45.6]} 29. Rdd1 {[%clk
0:00:13.8]} 29... Rde8 {[%clk 0:01:43.1]} 30. Nd2 {[%clk 0:00:13.2]} 30... Ne5
{[%clk 0:01:40.6]} 31. Qh4 {[%clk 0:00:12]} 31... g5 {[%clk 0:01:26.9]} 32. Qh6
{[%clk 0:00:10.5]} 32... Qe7 {[%clk 0:01:20.2]} 33. Rf2 {[%clk 0:00:10]} 33...
Bc8 {[%clk 0:01:14.9]} 34. Rdf1 {[%clk 0:00:09.7]} 34... Ng6 {[%clk 0:01:10.4]}
35. Nf3 {[%clk 0:00:06.7]} 35... c5 {[%clk 0:00:43.8]} 36. Nd5 {[%clk
0:00:06.2]} 36... Qd8 {[%clk 0:00:43.1]} 37. Nd2 {[%clk 0:00:05.1]} 37... Bb7
{[%clk 0:00:37.5]} 38. Nxf6 {[%clk 0:00:04.8]} 38... Re6 {[%clk 0:00:36.3]} 39.
Nxh7 {[%clk 0:00:02.6]} 39... Rh8 {[%clk 0:00:32.7]} 40. Qg7 {[%clk 0:00:02]}
40... Ne5 {[%clk 0:00:31.5]} 41. Rf8 {[%clk 0:00:01.3]} 41... Rxf8 {[%clk
0:00:26.2]} 42. Rxf8 {[%clk 0:00:02.2]} 42... Re8 {[%clk 0:00:27]} 43. Rxe8
{[%clk 0:00:02.2]} 43... Qxe8 {[%clk 0:00:27.9]} 44. Nf6 {[%clk 0:00:02.5]}
44... Qe6 {[%clk 0:00:26.2]} 45. Qxg5 {[%clk 0:00:01.6]} 45... Nf7 {[%clk
0:00:25.9]} 0-1

[Event "Early-Titled-Tuesday-Blitz-January-23-2024"]
[Site "Chess.com"]
[Date "2024.01.23"]
[Round "10"]
[White "GMAkobianSTL"]
[Black "Chessdreamer2020"]
[Result "1-0"]
[WhiteElo "2759"]
[BlackElo "2547"]
[TimeControl "180+1"]
[EndTime "9:56:38 PST"]
[Termination "GMAkobianSTL won by resignation"]

1. d4 {[%clk 0:02:58.3]} 1... d6 {[%clk 0:02:39.6]} 2. Nf3 {[%clk 0:02:57.5]}
2... Bg4 {[%clk 0:02:37.7]} 3. c4 {[%clk 0:02:53.3]} 3... Bxf3 {[%clk
0:02:34.4]} 4. exf3 {[%clk 0:02:52.9]} 4... g6 {[%clk 0:02:34.6]} 5. Nc3 {[%clk
0:02:52.5]} 5... Bg7 {[%clk 0:02:34.8]} 6. f4 {[%clk 0:02:51.8]} 6... e6 {[%clk
0:02:34.6]} 7. d5 {[%clk 0:02:51.7]} 7... Ne7 {[%clk 0:02:33.4]} 8. dxe6 {[%clk
0:02:51]} 8... fxe6 {[%clk 0:02:33.8]} 9. Bd3 {[%clk 0:02:51.4]} 9... O-O {[%clk
0:02:33.4]} 10. h4 {[%clk 0:02:50.6]} 10... h5 {[%clk 0:02:19]} 11. Qe2 {[%clk
0:02:46.7]} 11... Qd7 {[%clk 0:02:17.6]} 12. g4 {[%clk 0:02:28.7]} 12... hxg4
{[%clk 0:02:13.2]} 13. Qxg4 {[%clk 0:02:28.3]} 13... e5 {[%clk 0:02:12.4]} 14.
Qg2 {[%clk 0:02:23.2]} 14... exf4 {[%clk 0:02:11.2]} 15. h5 {[%clk 0:02:17.1]}
15... Qe6+ {[%clk 0:02:09.7]} 16. Kd1 {[%clk 0:02:15.5]} 16... gxh5 {[%clk
0:01:49.4]} 17. Rxh5 {[%clk 0:02:13.8]} 17... Nbc6 {[%clk 0:01:44.9]} 18. Rg5
{[%clk 0:01:58.4]} 18... Rf7 {[%clk 0:01:39.8]} 19. Bxf4 {[%clk 0:01:54.2]}
19... Ne5 {[%clk 0:01:39.2]} 20. Bxe5 {[%clk 0:01:53.2]} 20... dxe5 {[%clk
0:01:38.4]} 21. Kc2 {[%clk 0:01:50.9]} 21... Rd8 {[%clk 0:01:38.4]} 22. Rg1
{[%clk 0:01:49.8]} 22... Qh6 {[%clk 0:01:28.1]} 23. c5 {[%clk 0:01:39.5]} 23...
Rxd3 {[%clk 0:01:12.5]} 24. Kxd3 {[%clk 0:01:39]} 24... Qh7+ {[%clk 0:01:11.9]}
25. Ne4 {[%clk 0:01:38.2]} 25... Nf5 {[%clk 0:01:10.3]} 26. Kc3 {[%clk
0:01:31.4]} 26... Qh6 {[%clk 0:01:06.4]} 27. Qg4 {[%clk 0:01:10.3]} 27... Qe6
{[%clk 0:00:49.5]} 28. b3 {[%clk 0:01:06.7]} 28... Kf8 {[%clk 0:00:46.6]} 29.
Rd1 {[%clk 0:01:04.6]} 29... Ke8 {[%clk 0:00:37.1]} 30. Rg6 {[%clk 0:01:02.1]}
30... Qe7 {[%clk 0:00:31.6]} 31. b4 {[%clk 0:00:50.1]} 31... a5 {[%clk 0:00:31]}
32. a3 {[%clk 0:00:49.8]} 32... b6 {[%clk 0:00:30]} 33. cxb6 {[%clk 0:00:46.2]}
33... axb4+ {[%clk 0:00:29.7]} 34. axb4 {[%clk 0:00:45.6]} 34... cxb6 {[%clk
0:00:29.3]} 35. Rxg7 {[%clk 0:00:33.6]} 35... Qc7+ {[%clk 0:00:25.2]} 36. Kb2
{[%clk 0:00:32.8]} 36... Nxg7 {[%clk 0:00:24.4]} 37. Nd6+ {[%clk 0:00:32.5]}
37... Kf8 {[%clk 0:00:24.8]} 38. Nxf7 {[%clk 0:00:32.3]} 38... Qxf7 {[%clk
0:00:24.5]} 39. Rd8+ {[%clk 0:00:25.4]} 39... Ne8 {[%clk 0:00:24.6]} 40. Qh4
{[%clk 0:00:23.8]} 40... e4 {[%clk 0:00:21.4]} 41. Qh8+ {[%clk 0:00:20.1]} 41...
Ke7 {[%clk 0:00:21.6]} 42. Rxe8+ {[%clk 0:00:20.4]} 42... Qxe8 {[%clk
0:00:21.4]} 43. Qxe8+ {[%clk 0:00:21]} 43... Kxe8 {[%clk 0:00:22.3]} 44. Kc3
{[%clk 0:00:21.4]} 44... Kd7 {[%clk 0:00:22.8]} 45. Kd4 {[%clk 0:00:21.6]} 45...
Kc6 {[%clk 0:00:23.3]} 46. Kxe4 {[%clk 0:00:22.1]} 46... Kb5 {[%clk 0:00:23.9]}
47. f4 {[%clk 0:00:21]} 47... Kxb4 {[%clk 0:00:24.4]} 48. f5 {[%clk 0:00:20.7]}
48... Kc5 {[%clk 0:00:24.9]} 49. Ke5 {[%clk 0:00:21.2]} 49... Kc6 {[%clk
0:00:24.9]} 50. Ke6 {[%clk 0:00:21.5]} 50... b5 {[%clk 0:00:24.9]} 51. f6 {[%clk
0:00:22.1]} 51... b4 {[%clk 0:00:25.8]} 52. f7 {[%clk 0:00:22.6]} 52... b3
{[%clk 0:00:25.7]} 53. f8=Q {[%clk 0:00:22.9]} 53... Kb5 {[%clk 0:00:26]} 54.
Qa3 {[%clk 0:00:22.8]} 54... Kc4 {[%clk 0:00:26.9]} 55. Qb2 {[%clk 0:00:23.1]}
55... Kb4 {[%clk 0:00:27.5]} 56. Kd5 {[%clk 0:00:23.2]} 1-0